Cogmind - Beta 12 @@@ ROGUE MODE // 2023.05.31 @ 13:15:31 Player: Michael Result: Destroyed by G-47 Trooper with Particle Gun Performance ------------- Evolutions (1) 500 Regions Visited (6) 1200 Robots Destroyed (64) 320 Value Destroyed (1510) 1510 Prototype IDs (3) 60 Alien Tech Used (0) 0 Bonus (127) 127 TOTAL SCORE: 3717 Bonus ------- High Alert Combat Kills 11 Follower Combat Kills 116 Cogmind --------- Core Integrity 0/400 Matter 238/300 Energy 160/160 System Corruption 0% Temperature Cool (9) Movement Rolling (140) Ox4 Location -8/Mines Parts ------- > --- POWER (1) -------- Light Nuclear Core > --- PROPULSION (2) --- Wheel > --- UTILITY (4) ------ Improved Heat Sink High-capacity Storage Unit Targeting Computer Core Shielding > --- WEAPON (2) ------- Light Assault Rifle Light Assault Rifle > --- INVENTORY (20) --- Improved Ion Engine Nuclear Core Nuclear Core Light Nuclear Core Light Nuclear Core Medium Storage Unit High-capacity Storage Unit High-capacity Matter Pod (200) Hacking Suite Assault Rifle Assault Rifle Assault Rifle Heavy Assault Rifle Improved Assault Rifle Rocket Launcher Peak State ------------ > --- POWER ------------ Light Nuclear Core > --- PROPULSION ------- Improved Treads Wheel > --- UTILITY ---------- Improved Heat Sink High-capacity Storage Unit Targeting Computer Hardened Light Armor Plating > --- WEAPON ----------- Heavy Assault Rifle Improved Assault Rifle > --- INVENTORY -------- Improved Ion Engine Nuclear Core Nuclear Core Light Nuclear Core Light Nuclear Core Fission Core Improved Treads Wheel Wheel Medium Storage Unit High-capacity Storage Unit High-capacity Matter Pod Core Shielding Assault Rifle Assault Rifle Assault Rifle Heavy Assault Rifle Heavy Assault Rifle Heavy Assault Rifle Rocket Launcher [Rating: 21] Favorites ----------- Power Light Nuclear Core Engine Improved Ion Engine Power Core Light Nuclear Core Propulsion Improved Treads Treads Improved Treads Leg Aluminum Leg Wheel Wheel Utility Hardened Light Armor Plating Device Improved Heat Sink Storage High-capacity Storage Unit Processor Targeting Computer Protection Hardened Light Armor Plating Weapon Assault Rifle Ballistic Gun Assault Rifle Launcher Rocket Launcher Build | -11 -10 -10 -9 -9 -9 -8 ------- Run | Jun Mat Min Mat Min Exi Min Slots Evolved 2 | . . . 2 . . . Power . | . . . . . . . Propulsion . | . . . . . . . Utility 2 | . . . 2 . . . Weapon . | . . . . . . . Parts Attached 68 | 5 17 5 26 . 2 13 Power 10 | . 3 1 4 . . 2 Engine 6 | . 3 . 2 . . 1 Core 4 | . . 1 2 . . 1 Reactor . | . . . . . . . Propulsion 15 | 2 5 2 3 . . 3 Treads 4 | . 2 1 . . . 1 Leg 3 | 2 1 . . . . . Wheel 8 | . 2 1 3 . . 2 Hover . | . . . . . . . Flight . | . . . . . . . Utility 15 | 1 5 . 6 . 2 1 Device 1 | . . . . . 1 . Storage 4 | 1 1 . 1 . 1 . Processor 2 | . 1 . 1 . . . Hackware . | . . . . . . . Protection 8 | . 3 . 4 . . 1 Artifact . | . . . . . . . Weapon 28 | 2 4 2 13 . . 7 Energy Gun . | . . . . . . . Energy Cannon . | . . . . . . . Ballistic Gun 24 | 2 4 2 10 . . 6 Ballistic Cannon . | . . . . . . . Launcher 4 | . . . 3 . . 1 Special Weapon . | . . . . . . . Impact Weapon . | . . . . . . . Slashing Weapon . | . . . . . . . Piercing Weapon . | . . . . . . . Special Melee Weapon . | . . . . . . . Unidentified Prototypes . | . . . . . . . Parts Lost 13 | . 2 . 2 . . 9 Power 2 | . 1 . . . . 1 Propulsion 4 | . . . . . . 4 Utility 3 | . 1 . 1 . . 1 Weapon 4 | . . . 1 . . 3 Highest Loss Streak 7 | . 2 . 1 . . 7 To Critical Strikes 1 | . . . . . . 1 Average Slot Usage (%) 97 | . 96 100 98 100 100 93 Engine 5 | . 12 . 7 . . . Core 5 | . . 13 3 11 11 10 Treads 10 | . 8 14 11 11 11 8 Leg 3 | . 14 . . . . . Wheel 9 | . 4 13 11 11 11 10 Device 2 | . . . . . 2 11 Storage 12 | . 14 14 11 11 11 11 Processor 6 | . . . 11 11 11 11 Protection 15 | . 11 14 20 22 19 6 Ballistic Gun 24 | . 28 28 21 22 22 21 Naked Turns . | . . . . . . . Heaviest Build 59 | 8 24 20 59 57 57 57 Greatest Support 46 | 20 46 10 10 10 10 10 Greatest Overweight (x) 5 | . 2 1 5 5 5 5 Average Overweight (x) 2 | . . 1 3 5 5 4 Largest Inventory Capacity 20 | 8 10 10 20 20 20 20 Average Capacity 14 | 6 8 10 16 20 20 20 Most Carried 20 | 3 10 10 20 20 20 20 Average Carried 13 | 1 8 9 13 19 19 19 Final Capacity 20 | 8 10 10 20 20 20 20 Final Carried 20 | 3 9 10 20 17 20 15 Class Distribution -------------------- 77% | Mutant 22% | Scavenger-Mutant Dominant Class ---------------- Mutant | -10/Materials Mutant | -10/Mines Mutant | -9/Materials Mutant | -9/Mines Mutant | -9/Exiles Scavenger-Mutant | -8/Mines Resources | -11 -10 -10 -9 -9 -9 -8 ----------- Run | Jun Mat Min Mat Min Exi Min Matter Collected 2184 | 243 404 190 1044 . . 303 Remotely . | . . . . . . . Salvage Created 2286 | . 578 169 1120 . . 419 Parts 135 | . 33 12 68 . . 22 Haulers Intercepted 3 | . . . 3 . . . Recyclers Shooed 4 | . 3 . 1 . . . Parts Field Recycled . | . . . . . . . Retrieved Matter . | . . . . . . . Parts Self-Destructed . | . . . . . . . Prevented . | . . . . . . . Kills | -11 -10 -10 -9 -9 -9 -8 ------- Run | Jun Mat Min Mat Min Exi Min Combat Hostiles Destroyed 45 | . 13 2 19 . . 11 Guns 38 | . 13 2 15 . . 8 AOE 7 | . . . 4 . . 3 Classes Destroyed 11 | . 6 . 5 . . . Worker 4 | . 1 . 3 . . . Builder 1 | . . . 1 . . . Tunneler 4 | . 1 2 . . . 1 Hauler 3 | . . . 3 . . . Recycler 6 | . 2 1 2 . . 1 Watcher 1 | . 1 . . . . . Swarmer 15 | . 6 . 4 . . 5 Grunt 21 | . 7 2 6 . . 6 Brawler 1 | . . . 1 . . . Duelist 1 | . . . 1 . . . Sentry 7 | . . . 7 . . . Best Kill Streak 5 | . 5 2 5 . . 3 Combat Bots Only 5 | . 3 2 5 . . 3 Max Kills in Single Turn 2 | . 1 1 2 . . 2 Gunslinging . | . . . . . . . Exploded 2 | . . . 2 . . 2 Melee . | . . . . . . . Uniques/NPCs Destroyed . | . . . . . . . Combat | -11 -10 -10 -9 -9 -9 -8 -------- Run | Jun Mat Min Mat Min Exi Min Damage Taken 2813 | . 1006 85 851 . . 871 Core 497 | . 94 . 179 . . 224 Absorbed by Shields . | . . . . . . . Redirected to Shielding 63 | . . . 52 . . 11 Regen/Repaired (Parts) 37 | . . . 37 . . . Core Remaining (%) 81 | 100 . 62 . . . . Volleys Fired 209 | . 72 17 81 . . 39 Largest 2 | . 2 2 2 . . 2 Hottest 56 | . 40 40 46 . . 56 Shots Fired 413 | . 144 34 157 . . 78 Gun 404 | . 144 34 152 . . 74 Cannon . | . . . . . . . Launcher 9 | . . . 5 . . 4 Special . | . . . . . . . Kinetic 404 | . 144 34 152 . . 74 Thermal . | . . . . . . . Explosive 9 | . . . 5 . . 4 Electromagnetic . | . . . . . . . Robot Hit Streak 17 | . 17 6 14 . . 9 Robot Miss Streak 7 | . 7 3 3 . . 3 Penetration Max . | . . . . . . . Secondary Targets 7 | . 3 . 2 . . 2 Max Gunslinging Chain 1 | . 1 . 1 . . 1 Shots Hit Robots 278 | . 89 18 119 . . 52 Core Hits 109 | . 31 9 44 . . 25 Critical Kills 1 | . . . . . . 1 Critical Parts Destroyed 4 | . 1 . 2 . . 1 Critical Strikes 5 | . 1 . 2 . . 2 Destroy 5 | . 1 . 2 . . 2 Melee Attacks . | . . . . . . . Impact . | . . . . . . . Slashing . | . . . . . . . Piercing . | . . . . . . . Sneak Attacks . | . . . . . . . Combat Hostiles . | . . . . . . . Follow-up Attacks . | . . . . . . . Damage Inflicted 4247 | . 1037 208 1932 . . 1070 Guns 3618 | . 1037 208 1664 . . 709 Cannons . | . . . . . . . Explosions 629 | . . . 268 . . 361 Melee . | . . . . . . . Ramming . | . . . . . . . Kinetic 3618 | . 1037 208 1664 . . 709 Thermal . | . . . . . . . Explosive 629 | . . . 268 . . 361 Electromagnetic . | . . . . . . . Impact . | . . . . . . . Slashing . | . . . . . . . Piercing . | . . . . . . . Highest Corruption . | . . . . . . . Average Corruption . | . . . . . . . Corruption Purged . | . . . . . . . Corruption Blocked . | . . . . . . . Overload Shots . | . . . . . . . Overflow Damage 8 | . . . 8 . . . Projectiles . | . . . . . . . Explosions 8 | . . . 8 . . . Melee . | . . . . . . . Knockbacks . | . . . . . . . Impact . | . . . . . . . Kinetic . | . . . . . . . Secondary . | . . . . . . . Self-Inflicted Damage 25 | . . . 25 . . . Shots 1 | . . . 1 . . . Rammed . | . . . . . . . Targets Rammed . | . . . . . . . Kicked . | . . . . . . . Crushed . | . . . . . . . Highest Temperature 243 | . 243 2 24 . . 1 Average Temperature 45 | . 65 2 6 . . 1 Received Heat Transfer 1020 | . 414 30 261 . . 315 Siege Activations . | . . . . . . . Robots Corrupted . | . . . . . . . Combat Hostiles . | . . . . . . . Parts Fried . | . . . . . . . Impact Corruptions . | . . . . . . . Robots Melted . | . . . . . . . Combat Hostiles . | . . . . . . . Parts Melted . | . . . . . . . Heat Transferred . | . . . . . . . Parts Sabotaged . | . . . . . . . Parts Stolen . | . . . . . . . Parts Stripped . | . . . . . . . Power Chain Reactions . | . . . . . . . Missiles Intercepted . | . . . . . . . Alert | -11 -10 -10 -9 -9 -9 -8 ------- Run | Jun Mat Min Mat Min Exi Min Peak Influence 439 | . 244 151 439 142 . 211 Initial 142 | . . 45 . 142 . . Average 127 | . 95 81 199 142 . 74 Maximum Alert Level 2 | . 1 . 2 . . 1 Low Security (%) 77 | 100 75 100 58 100 . 95 Level 1 19 | . 24 . 35 . . 4 Level 2 2 | . . . 5 . . . Level 3 . | . . . . . . . Level 4 . | . . . . . . . Level 5 . | . . . . . . . High Security . | . . . . . . . Max Security . | . . . . . . . Squads Dispatched 7 | . 3 . 3 . . 1 Investigation 1 | . 1 . . . . . Extermination . | . . . . . . . Reinforcement 6 | . 2 . 3 . . 1 Assault . | . . . . . . . Garrison . | . . . . . . . Intercept . | . . . . . . . Searches Triggered . | . . . . . . . Construction Impeded 1 | . . . . . . 1 Haulers Reinforced . | . . . . . . . Active Scanning Responses . | . . . . . . . Cargo Convoy Interrupts . | . . . . . . . Stealth | -11 -10 -10 -9 -9 -9 -8 --------- Run | Jun Mat Min Mat Min Exi Min Distress Signals 6 | . 2 . 4 . . . Communications Jammed . | . . . . . . . Distress Signals . | . . . . . . . Times Spotted 81 | . 24 4 35 . . 18 Peak Tracking Total 5 | . 4 2 5 . . 5 Tactical Retreats 3 | . 1 . . . . 2 Traps | -11 -10 -10 -9 -9 -9 -8 ------- Run | Jun Mat Min Mat Min Exi Min Traps Triggered 3 | . 2 . 1 . . . Indirectly . | . . . . . . . Trap Hack Attempts . | . . . . . . . Triggered . | . . . . . . . Disarmed . | . . . . . . . Reprogrammed . | . . . . . . . Reused . | . . . . . . . Traps Extracted . | . . . . . . . Installed . | . . . . . . . Triggered . | . . . . . . . Exploded 1 | . . . . . . 1 Machines | -11 -10 -10 -9 -9 -9 -8 ---------- Run | Jun Mat Min Mat Min Exi Min Machines Disabled 3 | . . 1 2 . . . Max in Single Turn 1 | . . 1 1 . . . Machines Repaired . | . . . . . . . Machines Sabotaged . | . . . . . . . Overloaded Fab Kills . | . . . . . . . Hacking | -11 -10 -10 -9 -9 -9 -8 --------- Run | Jun Mat Min Mat Min Exi Min Machines Accessed 15 | . 7 . 7 . 1 . Terminals 9 | . 5 . 4 . . . Fabricators . | . . . . . . . Repair Stations 2 | . . . 2 . . . Recycling Units 2 | . 2 . . . . . Scanalyzers 1 | . . . 1 . . . Garrison Access . | . . . . . . . Total Hacks 29 | . 15 . 13 . 1 . Successful 14 | . 6 . 7 . 1 . Failed 15 | . 9 . 6 . . . Catastrophic 1 | . 1 . . . . . Database Lockouts . | . . . . . . . Manual 3 | . 1 . 2 . . . Terminals 19 | . 12 . 7 . . . Fabricators . | . . . . . . . Repair Stations 5 | . . . 5 . . . Recycling Units 3 | . 3 . . . . . Scanalyzers 1 | . . . 1 . . . Garrison Access . | . . . . . . . Terminal Hacks 7 | . 4 . 2 . 1 . Record 1 | . . . . . 1 . Robot Analysis 1 | . 1 . . . . . Prototype ID Bank 1 | . 1 . . . . . Emergency Access Points 1 | . 1 . . . . . Hauler Manifests 2 | . 1 . 1 . . . Registered Components 1 | . . . 1 . . . Fabricator Hacks . | . . . . . . . Repair Station Hacks 3 | . . . 3 . . . Scan Component 2 | . . . 2 . . . Repair 1 | . . . 1 . . . Recycling Unit Hacks 2 | . 2 . . . . . Retrieve Components 2 | . 2 . . . . . Scanalyzer 1 | . . . 1 . . . Insert Component 1 | . . . 1 . . . Garrison Access Hacks . | . . . . . . . Unauthorized Hacks 1 | . . . 1 . . . Terminals 1 | . . . 1 . . . Botnet 1 | . . . 1 . . . Fabricators . | . . . . . . . Repair Stations . | . . . . . . . Recycling Units . | . . . . . . . Scanalyzers . | . . . . . . . Garrison Access . | . . . . . . . Data Cores Recovered . | . . . . . . . Used . | . . . . . . . Hacking Detections 14 | . 7 . 7 . . . Full Trace Events . | . . . . . . . Feedback Events . | . . . . . . . Feedback Blocked . | . . . . . . . Robot Schematics Acquired . | . . . . . . . Robots Built . | . . . . . . . Authchips . | . . . . . . . Time . | . . . . . . . Total Robot Build Rating . | . . . . . . . Part Schematics Acquired . | . . . . . . . Parts Built . | . . . . . . . Authchips . | . . . . . . . Time . | . . . . . . . Total Part Build Rating . | . . . . . . . Parts Repaired 1 | . . . 1 . . . Time 38 | . . . 38 . . . Parts Recycled . | . . . . . . . Recycled Matter . | . . . . . . . Retrieved Matter . | . . . . . . . Retrieved Components . | . . . . . . . Parts Scanalyzed . | . . . . . . . Part Schematics Acquired . | . . . . . . . Parts Damaged . | . . . . . . . Bothacking | -11 -10 -10 -9 -9 -9 -8 ------------ Run | Jun Mat Min Mat Min Exi Min Used RIF Installer . | . . . . . . . Robots Hacked . | . . . . . . . Non-combat . | . . . . . . . Combat . | . . . . . . . Robot Hacks Applied . | . . . . . . . Relay Couplers Released . | . . . . . . . Fabnet Peak Effective % . | . . . . . . . Robots Rewired . | . . . . . . . Allies Hacked . | . . . . . . . Hacks Repelled . | . . . . . . . Allies | -11 -10 -10 -9 -9 -9 -8 -------- Run | Jun Mat Min Mat Min Exi Min Total Allies 4 | . . 4 . . . . Largest Group 4 | . . 4 3 . . . Highest-Rated Group 71 | . . 71 40 . . . Highest-Rated Ally 31 | . . 31 16 . . . Total Orders . | . . . . . . . Ally Attacks 29 | . . 3 26 . . . Total Damage 313 | . . 43 270 . . . Kills 5 | . . 1 4 . . . Allies Corrupted . | . . . . . . . Allies Melted . | . . . . . . . Intel | -11 -10 -10 -9 -9 -9 -8 ------- Run | Jun Mat Min Mat Min Exi Min Robot Analysis Total 1 | . 1 . . . . . Derelict Logs Recovered 2 | . . 1 . 1 . . Drone Launches . | . . . . . . . Drone Recoveries . | . . . . . . . Exploration | -11 -10 -10 -9 -9 -9 -8 ------------- Run | Jun Mat Min Mat Min Exi Min Turns Passed 3968 | 59 885 581 1388 132 233 690 Spaces Moved 2353 | 39 516 502 708 85 146 357 Core 8 | 8 . . . . . . Treads 42 | . 42 . . . . . Legs 310 | 31 279 . . . . . Wheels 1993 | . 195 502 708 85 146 357 Hover . | . . . . . . . Flight . | . . . . . . . Fastest Speed 50 | 50 95 95 110 155 155 140 Average Speed 128 | 105 121 95 138 155 155 154 Slowest Speed 240 | 120 240 95 155 155 155 155 Overloaded Moves . | . . . . . . . Propulsion Burnouts . | . . . . . . . Robots Hopped . | . . . . . . . Cave-ins Triggered . | . . . . . . . Exploration Rate (%) 56 | 3 90 93 72 26 53 61 Regions Visited 6 Branch Regions 4 Pre-discovered Areas 3 | . . . . 2 1 . Known Exits Taken 1 | . . . 1 . . . Unknown Exits Taken 5 | 1 1 1 . 1 1 . Scrap Searched 4 | . . 1 . 1 . 2 Spaces Dug . | . . . . . . . Terrain Destroyed 84 | . . . 50 . . 34 Melee . | . . . . . . . Projectile . | . . . . . . . AOE 84 | . . . 50 . . 34 Terrain Rammed . | . . . . . . . Walls Destroyed . | . . . . . . . Machines Disabled . | . . . . . . . Actions | -11 -10 -10 -9 -9 -9 -8 --------- Run | Jun Mat Min Mat Min Exi Min Total 2885 | 54 644 573 956 87 153 418 Wait 188 | 8 8 42 126 . . 4 Move 2347 | 38 515 501 707 84 145 357 Hop . | . . . . . . . Pick Up 34 | 3 14 3 9 . 4 1 Fast Attach 20 | 5 5 1 6 . . 3 Attach 14 | . 2 . 4 . . 8 Detach 9 | . 3 1 2 . . 3 Swap 34 | . 10 4 16 . 2 2 Drop 30 | . 15 4 5 3 2 1 Fire 209 | . 72 17 81 . . 39 Melee . | . . . . . . . Ram . | . . . . . . . Kick . | . . . . . . . Crush . | . . . . . . . Escape Stasis . | . . . . . . . Rewire . | . . . . . . . Trap . | . . . . . . . Miscellaneous . | . . . . . . . Route ------- -11/Junkyard -10/Materials (discovered 3 exits: *Mat x2 / [*Min]) -10/Mines (discovered 2 exits: *Mat x2) -9/Materials (discovered 4 exits: *Mat x2 / *Min x2) -9/Mines -9/Exiles -8/Mines History --------- Turn | Location | Event 4 | -11/Junkyard | Discovered new exit (range 15) 60 | -11/Junkyard | Entered Materials 315 | -10/Materials | Discovered new exit (range 9) 318 | -10/Materials | Build established: Mutant 782 | -10/Materials | Discovered new exit (range 13) 893 | -10/Materials | Discovered new exit (range 16) 945 | -10/Materials | Entered Mines 993 | -10/Mines | Discovered new exit (range 9) 1073 | -10/Mines | Learned 4 Materials zone layouts 1158 | -10/Mines | Assisted by bots powering up and referring to "LRC-V3" 1174 | -10/Mines | Received a Mining Laser from a helpful Derelict 1319 | -10/Mines | Joined a pair of Derelicts in attacking an 0b10 outpost 1403 | -10/Mines | Discovered new exit (range 15) 1421 | -10/Mines | Received a Rocket Launcher from a helpful Derelict 1526 | -10/Mines | Entered Materials 1526 | -9/Materials | Accompanied by 3 allies 1526 | -9/Materials | Evolved 2 slots: Utility x2 1527 | -9/Materials | Identified exit to Materials 1527 | -9/Materials | Identified exit to Mines 1613 | -9/Materials | Repaired Lgt. Nuclear Core 1804 | -9/Materials | Discovered exit to Materials (range 4) 1845 | -9/Materials | Discovered exit to Mines (range 4) 2914 | -9/Materials | Entered Mines 2915 | -9/Mines | Learned location of Storage (-7) 2954 | -9/Mines | Assembled infested the area 2970 | -9/Mines | Learned location of Zion (-7) 2985 | -9/Mines | YI-UF0 nonchalantly dropped a Grenade Launcher on the ground 3038 | -9/Mines | Discovered new exit (range 5) 3046 | -9/Mines | Entered Exiles 3088 | -9/Exiles | Met 8R-AWN 3113 | -9/Exiles | Met EX-HEX 3189 | -9/Exiles | Met EX-DEC 3262 | -9/Exiles | Discovered new exit (range 14) 3279 | -9/Exiles | Entered Mines 3526 | -8/Mines | Build established: Scavenger-Mutant 3841 | -8/Mines | Core integrity fell below 50% 3896 | -8/Mines | Core integrity fell below 20% 3947 | -8/Mines | Lost 7 parts (1p3n3w) 3969 | -8/Mines | Destroyed by G-47 Trooper with Particle Gun Last Messages --------------- 03881_ Hvy. Assault Rifle destroyed. 03884_ G-50 Soldier destroyed. 03885_ Acquired 64 matter. 03891_ Wheel destroyed. 03896_ G-47 Trooper suffers critical hit (Destroy). 03896_ G-47 Trooper destroyed. 03897_ Acquired 47 matter. 03900_ Hvy. Assault Rifle destroyed. 03920_ G-47 Trooper destroyed. 03921_ Acquired 42 matter. 03929_ Acquired Lgt. Nuclear Core. 03932_ Acquired Lgt. Assault Rifle. 03934_ Acquired 20 matter. 03937_ ALERT: Construction progress impeded, dispatching reinforcements to local area. 03946_ Acquired 11 matter. 03949_ Acquired 10 matter. 03951_ Acquired 11 matter. 03954_ Acquired Lgt. Assault Rifle. 03956_ K-01 Serf collects debris. Map ----- +----------------------------------------------------+ | ??????????# #?????????????????????????????????? | | ????????## #??????????????????????????????????? | | ???????## #??????????????????????????????????? | | ??????## #???????????????????????????????????? | | ??????# ##??????????????????????????????????? | | ?????## ##?????????????????????????????????? | | ###### #?????????????????????????????????? | | #?????????????????????????????????? | | #?????????????????????????????????? | | ## #?????????????????????????????????? | | # ## ##????###??????????????????????????? | | #### ##????? ??????????????????????????? | | #?## #??????# #??????????????????????????? | | #?# #??????# #?????????????????? ???????? | | ## ### #??????# #????????????????? ?????? | | ?# # #???#### #???????????????? ?????? | | ?# ## #???# #??????????????? ?????? | | ?### ## ##??# ###??????????????? #??????? | | ???# ### #### #???????????????? #???????? | | ???# ### ## #???????????????# #????????? | | ???# ## # #??????????????# #?????????? | | ???# ## #?###?????????# #??????????? | | ???# ## #?# ????????# #???????????? | | ???# ### #?#[#????####[ #???????????? | | ???# #?#### #?# ########gg= #????????????? | | ???# #????#### #?#=k@= *g= #????????????? | | ???# #???????## #?# ####### ##????????????? | | ??? ????????## ##?# #????### "#?????????????? | | ?? ?????????# ##??# #??????###"#?????????????? | | ? [ ?????????# #???# #???????####?????????????? | | ## %% ?????????#!##### #????????????????????????? | | ####????# [] * #????????????????????????? | | # ###??# #######????????????????????????? | | ##?# ##?????????????????????????????? | | ### ??????????????????????????????? | | ## #??????????????????????????????? | | ## ### ## #??????????????????????????????? | | #?## ##?## #??????????????????????????????? | | ???# #???## ### #??????????????????????????????? | | ???# ##????####?# #??????????????????????????????? | | ???##?????????### #????????????????####??????????? | | ??????????????#*[ #???????????????## ##?????????? | | ??????????????#%###????????????#### ######????? | | ??????????????#*#?????????????## ##???? | | ??????????????#=#????????###### ###?? | | ????#####?????#!#????????# """ ##? | | ???## ##????# #????????# """ #? | | ??## #????# #????????# ###### """ ## ## | | ??# ##???# #????????# #????## ####### # | | ?## ##??# #????????# #????## ##?????# | +----------------------------------------------------+ Best States ------------- Heat Dissipation 42 Energy Generation 14 Energy Capacity 265 Matter Stores 300 Matter Capacity 300 Sight Range 18 Terrain Scan Density 10 Armor Coverage 150 Core Shielding 20 Propulsion Shielding 33 Evasion (%) 55 Targeting Accuracy 5 Recoil Reduction 2 Item Schematics ----------------- None Robot Schematics ------------------ None Fabricated ------------ Nothing Alien Tech Used ----------------- None Achievements -------------- None Challenges ------------ None Game ------ Seed WeaponBiocellDetector Manual? 0 Play Time 00:41:01 Cumulative 762.6 hours Start 2023.05.30 @ 18:04:25 End 2023.05.31 @ 13:15:31 Sessions 2 Manual Loads 0 Difficulty Rogue Special Mode None Game No. 224 Rogue 188 Adventurer 36 Explorer 0 Win Type - Total 16 Types 16/0/0/0/0/0/0/0/0 Lore% 56 Gallery% 63 Achievement% 50 Wizard Run 0 Options --------- ASCII 0 Keyboard 1 Movement Vi Keybinds 0 Fullscreen 1 Font 18/Terminus Map View 76x50 Tactical HUD 1 Map Filters NONE Filters NONE Steam 0 RUN: a46e3329-17f6-45ab-9490-1145a674cdd3